[Event "*** SCC Grand Prix: Titled Tuesday Blitz"]
[Site "Chess.com"]
[Date "2020.10.06"]
[Round "5"]
[White "vrekhson"]
[Black "KatarinaOstojic"]
[Result "1/2-1/2"]
[WhiteElo "2209"]
[BlackElo "2358"]
[TimeControl "180+1"]
[EndTime "10:57:04 PDT"]
[Termination "Game drawn by agreement"]

1. e4 {[%clk 0:03:00.9]} 1... c5 {[%clk 0:02:57.2]} 2. Nf3 {[%clk 0:02:53]} 2...
d6 {[%clk 0:02:57.4]} 3. d4 {[%clk 0:02:51.9]} 3... cxd4 {[%clk 0:02:58.3]} 4.
Qxd4 {[%clk 0:02:52.4]} 4... Nf6 {[%clk 0:02:58.6]} 5. Bg5 {[%clk 0:02:51.4]}
5... Nc6 {[%clk 0:02:58.8]} 6. Bb5 {[%clk 0:02:24.9]} 6... Qa5+ {[%clk
0:02:57.9]} 7. Nc3 {[%clk 0:02:24.2]} 7... Qxb5 {[%clk 0:02:58.5]} 8. Nxb5
{[%clk 0:02:24.2]} 8... Nxd4 {[%clk 0:02:59.1]} 9. Nfxd4 {[%clk 0:02:17.5]} 9...
Nxe4 {[%clk 0:02:59.1]} 10. Nc7+ {[%clk 0:02:02.3]} 10... Kd8 {[%clk 0:02:59.5]}
11. Nxa8 {[%clk 0:02:03.2]} 11... Nxg5 {[%clk 0:02:59.6]} 12. Nb5 {[%clk
0:01:35.4]} 12... a6 {[%clk 0:02:26.9]} 13. Nc3 {[%clk 0:01:32.2]} 13... Bf5
{[%clk 0:02:21.7]} 14. O-O-O {[%clk 0:01:21.9]} 14... e6 {[%clk 0:02:16.3]} 15.
Nb6 {[%clk 0:01:21.1]} 15... Kc7 {[%clk 0:02:13.6]} 16. Nc4 {[%clk 0:01:19]}
16... Be7 {[%clk 0:02:12.9]} 17. Ne3 {[%clk 0:01:19.1]} 17... Bg6 {[%clk
0:02:10]} 18. f4 {[%clk 0:01:19.3]} 18... Ne4 {[%clk 0:02:09.8]} 19. Nxe4 {[%clk
0:01:16]} 19... Bxe4 {[%clk 0:02:10.7]} 20. Rhe1 {[%clk 0:01:16.2]} 20... f5
{[%clk 0:02:03.8]} 21. g3 {[%clk 0:01:15.8]} 21... Bf6 {[%clk 0:02:03.6]} 22. c3
{[%clk 0:01:15.7]} 22... Rd8 {[%clk 0:02:02.5]} 23. g4 {[%clk 0:01:09.3]} 23...
fxg4 {[%clk 0:01:57.8]} 24. Nxg4 {[%clk 0:01:10.2]} 24... Bf3 {[%clk 0:01:58]}
25. Nxf6 {[%clk 0:01:09.9]} 25... Bxd1 {[%clk 0:01:52.7]} 26. Nxh7 {[%clk
0:01:08.3]} 26... Bg4 {[%clk 0:01:53.3]} 27. Ng5 {[%clk 0:01:06]} 27... Re8
{[%clk 0:01:52.8]} 28. Kd2 {[%clk 0:01:02.7]} 28... Kd7 {[%clk 0:01:52.7]} 29.
Ke3 {[%clk 0:01:02.1]} 29... e5 {[%clk 0:01:51.6]} 30. Rg1 {[%clk 0:00:54]}
30... Bf5 {[%clk 0:01:43.1]} 31. Nf3 {[%clk 0:00:49.7]} 31... exf4+ {[%clk
0:01:39.1]} 32. Kxf4 {[%clk 0:00:50.6]} 32... Be4 {[%clk 0:01:39.9]} 33. Rxg7+
{[%clk 0:00:48.4]} 33... Kc6 {[%clk 0:01:40.3]} 34. Nd4+ {[%clk 0:00:47.4]}
34... Kb6 {[%clk 0:01:40.9]} 35. h4 {[%clk 0:00:44]} 35... Bb1 {[%clk
0:01:39.5]} 36. h5 {[%clk 0:00:40.5]} 36... Bxa2 {[%clk 0:01:33.9]} 37. h6
{[%clk 0:00:40.4]} 37... Rh8 {[%clk 0:01:30.6]} 38. Kg5 {[%clk 0:00:34.5]} 38...
Bb1 {[%clk 0:01:30.1]} 39. Nf5 {[%clk 0:00:30.3]} 39... Bxf5 {[%clk 0:01:29.3]}
40. Kxf5 {[%clk 0:00:26.8]} 40... Rxh6 {[%clk 0:01:29.8]} 41. Ke4 {[%clk
0:00:25.6]} 41... Rh2 {[%clk 0:01:30.1]} 42. b4 {[%clk 0:00:25.4]} 42... Kc6
{[%clk 0:01:30.1]} 43. Kd4 {[%clk 0:00:25.3]} 43... Rh4+ {[%clk 0:01:29.3]} 44.
Kd3 {[%clk 0:00:25.7]} 44... b6 {[%clk 0:01:29.3]} 45. Rg8 {[%clk 0:00:24.9]}
45... a5 {[%clk 0:01:28.9]} 46. bxa5 {[%clk 0:00:24.7]} 46... bxa5 {[%clk
0:01:29.8]} 47. Ra8 {[%clk 0:00:24.9]} 47... a4 {[%clk 0:01:30.3]} 48. Kc2
{[%clk 0:00:23.7]} 48... Kc5 {[%clk 0:01:29.3]} 49. Ra5+ {[%clk 0:00:22]} 49...
Kc6 {[%clk 0:01:27.5]} 50. Ra6+ {[%clk 0:00:22.1]} 50... Kd7 {[%clk 0:01:25.1]}
51. Ra7+ {[%clk 0:00:21.2]} 51... Ke6 {[%clk 0:01:25.3]} 52. Kd3 {[%clk
0:00:21.6]} 52... d5 {[%clk 0:01:21.8]} 53. Ra8 {[%clk 0:00:20.6]} 53... Rc4
{[%clk 0:01:21.8]} 54. Re8+ {[%clk 0:00:20.2]} 54... Kd6 {[%clk 0:01:21.1]} 55.
Rd8+ {[%clk 0:00:20.5]} 55... Ke5 {[%clk 0:01:16.6]} 56. Re8+ {[%clk 0:00:20.5]}
56... Kf6 {[%clk 0:01:16.8]} 57. Rf8+ {[%clk 0:00:20.5]} 57... Ke7 {[%clk
0:01:17.3]} 58. Rf5 {[%clk 0:00:19.2]} 58... Ke6 {[%clk 0:01:17.2]} 59. Rh5
{[%clk 0:00:19.4]} 59... a3 {[%clk 0:01:17.7]} 60. Rh6+ {[%clk 0:00:17.4]} 60...
Ke5 {[%clk 0:01:15.4]} 61. Ra6 {[%clk 0:00:18.3]} 61... a2 {[%clk 0:01:11.2]}
62. Rxa2 {[%clk 0:00:18.3]} 62... Rg4 {[%clk 0:01:10.8]} 63. Re2+ {[%clk
0:00:18.3]} 63... Kd6 {[%clk 0:01:10.6]} 64. Re3 {[%clk 0:00:18.7]} 64... Kc5
{[%clk 0:01:10.1]} 65. Rh3 {[%clk 0:00:18.7]} 65... Kd6 {[%clk 0:01:08.3]} 66.
Rh6+ {[%clk 0:00:18.2]} 1/2-1/2

[Event "*** SCC Grand Prix: Titled Tuesday Blitz"]
[Site "Chess.com"]
[Date "2020.10.06"]
[Round "5"]
[White "chessfrendz"]
[Black "nitpicker"]
[Result "1-0"]
[WhiteElo "2383"]
[BlackElo "2243"]
[TimeControl "180+1"]
[EndTime "10:57:05 PDT"]
[Termination "chessfrendz won on time"]

1. d4 {[%clk 0:03:00.9]} 1... Nf6 {[%clk 0:02:58.6]} 2. c4 {[%clk 0:02:57.2]}
2... e6 {[%clk 0:02:58.3]} 3. Nc3 {[%clk 0:02:54.5]} 3... Bb4 {[%clk 0:02:57.4]}
4. e3 {[%clk 0:02:54.5]} 4... d5 {[%clk 0:02:56.4]} 5. Nf3 {[%clk 0:02:48.2]}
5... O-O {[%clk 0:02:55.2]} 6. cxd5 {[%clk 0:02:46.4]} 6... exd5 {[%clk
0:02:54.2]} 7. Bd3 {[%clk 0:02:46.2]} 7... Bd6 {[%clk 0:02:44.2]} 8. O-O {[%clk
0:02:43.9]} 8... c6 {[%clk 0:02:44.2]} 9. Qc2 {[%clk 0:02:33]} 9... Re8 {[%clk
0:02:37]} 10. Bd2 {[%clk 0:02:31.3]} 10... Bg4 {[%clk 0:02:27.7]} 11. Ng5 {[%clk
0:02:17.6]} 11... h6 {[%clk 0:02:08.8]} 12. Bh7+ {[%clk 0:01:42.6]} 12... Kf8
{[%clk 0:02:03.4]} 13. Nxf7 {[%clk 0:01:41.2]} 13... Kxf7 {[%clk 0:01:57.2]} 14.
Bg6+ {[%clk 0:01:35.9]} 14... Kg8 {[%clk 0:01:53]} 15. Bxe8 {[%clk 0:01:34.4]}
15... Qxe8 {[%clk 0:01:52.8]} 16. f3 {[%clk 0:01:33.1]} 16... Bh5 {[%clk
0:01:34]} 17. Rae1 {[%clk 0:01:26.8]} 17... Qd8 {[%clk 0:00:50.3]} 18. e4 {[%clk
0:01:25.8]} 18... Bc7 {[%clk 0:00:37.9]} 19. e5 {[%clk 0:01:25.3]} 19... Nh7
{[%clk 0:00:31.8]} 20. g4 {[%clk 0:01:23.9]} 20... Be8 {[%clk 0:00:28.2]} 21. f4
{[%clk 0:01:21.2]} 21... Nd7 {[%clk 0:00:27.2]} 22. f5 {[%clk 0:01:19]} 22...
Qh4 {[%clk 0:00:26.5]} 23. Qd1 {[%clk 0:01:17.4]} 23... Ng5 {[%clk 0:00:25.6]}
24. Re3 {[%clk 0:01:15.4]} 24... Nxe5 {[%clk 0:00:22.3]} 25. dxe5 {[%clk
0:01:14.4]} 25... d4 {[%clk 0:00:21]} 26. Be1 {[%clk 0:01:13.4]} 26... Nh3+
{[%clk 0:00:15.2]} 27. Kg2 {[%clk 0:01:07.1]} 27... Qg5 {[%clk 0:00:11.2]} 28.
Rxh3 {[%clk 0:01:05.8]} 28... dxc3 {[%clk 0:00:11.5]} 29. Bxc3 {[%clk
0:01:04.2]} 29... Rd8 {[%clk 0:00:10.6]} 30. Qe2 {[%clk 0:01:02]} 30... c5
{[%clk 0:00:10.8]} 31. Kg1 {[%clk 0:01:00]} 31... b5 {[%clk 0:00:07.8]} 32. b3
{[%clk 0:00:58]} 32... Bb6 {[%clk 0:00:07.7]} 33. Rd1 {[%clk 0:00:47.8]} 33...
Bc6 {[%clk 0:00:06.5]} 34. Rxd8+ {[%clk 0:00:46.5]} 34... Qxd8 {[%clk
0:00:06.4]} 35. e6 {[%clk 0:00:41.8]} 35... c4+ {[%clk 0:00:05.1]} 36. Kf1
{[%clk 0:00:40.6]} 36... Qd5 {[%clk 0:00:04.8]} 37. Ke1 {[%clk 0:00:30.9]} 37...
Qh1+ {[%clk 0:00:02.9]} 38. Kd2 {[%clk 0:00:30.2]} 38... Qd5+ {[%clk 0:00:02.1]}
39. Kc2 {[%clk 0:00:25.5]} 39... cxb3+ {[%clk 0:00:01.8]} 40. axb3 {[%clk
0:00:24.7]} 1-0

[Event "*** SCC Grand Prix: Titled Tuesday Blitz"]
[Site "Chess.com"]
[Date "2020.10.06"]
[Round "5"]
[White "Onischuk_V"]
[Black "LiemLe"]
[Result "0-1"]
[WhiteElo "2862"]
[BlackElo "2992"]
[TimeControl "180+1"]
[EndTime "10:57:06 PDT"]
[Termination "LiemLe won on time"]

1. Nf3 {[%clk 0:03:00]} 1... Nf6 {[%clk 0:03:00.4]} 2. g3 {[%clk 0:03:00.4]}
2... c5 {[%clk 0:02:57.9]} 3. Bg2 {[%clk 0:03:00.9]} 3... Nc6 {[%clk 0:02:56.5]}
4. O-O {[%clk 0:03:01.4]} 4... d5 {[%clk 0:02:57.1]} 5. d3 {[%clk 0:03:02]} 5...
e6 {[%clk 0:02:56.6]} 6. Nbd2 {[%clk 0:03:02.4]} 6... Be7 {[%clk 0:02:57.2]} 7.
e4 {[%clk 0:03:03]} 7... O-O {[%clk 0:02:57.8]} 8. Re1 {[%clk 0:03:03.1]} 8...
Qc7 {[%clk 0:02:54.7]} 9. e5 {[%clk 0:03:01.8]} 9... Nd7 {[%clk 0:02:54.9]} 10.
Qe2 {[%clk 0:03:02.1]} 10... b5 {[%clk 0:02:51.7]} 11. Nf1 {[%clk 0:03:02.5]}
11... b4 {[%clk 0:02:48.9]} 12. h4 {[%clk 0:03:01.1]} 12... a5 {[%clk
0:02:40.9]} 13. N1h2 {[%clk 0:02:55.9]} 13... Re8 {[%clk 0:02:36.4]} 14. Bf4
{[%clk 0:02:51.2]} 14... Bf8 {[%clk 0:02:35]} 15. Ng4 {[%clk 0:02:48.5]} 15...
a4 {[%clk 0:02:26.2]} 16. h5 {[%clk 0:02:41.1]} 16... h6 {[%clk 0:02:26.1]} 17.
Qd2 {[%clk 0:02:30.7]} 17... a3 {[%clk 0:02:15.5]} 18. b3 {[%clk 0:02:30.4]}
18... Nd4 {[%clk 0:02:12.8]} 19. Nxd4 {[%clk 0:02:28.5]} 19... cxd4 {[%clk
0:02:13.7]} 20. Nh2 {[%clk 0:02:24.7]} 20... Nb8 {[%clk 0:01:58.5]} 21. Nf3
{[%clk 0:02:18.3]} 21... Nc6 {[%clk 0:01:59]} 22. g4 {[%clk 0:02:18]} 22... Ra7
{[%clk 0:01:51.8]} 23. g5 {[%clk 0:02:16]} 23... hxg5 {[%clk 0:01:52.7]} 24.
Nxg5 {[%clk 0:02:12.4]} 24... Qd8 {[%clk 0:01:51.7]} 25. Bh3 {[%clk 0:02:05.5]}
25... f5 {[%clk 0:01:36.1]} 26. Kh1 {[%clk 0:01:56.1]} 26... Rc7 {[%clk
0:01:12.2]} 27. Rg1 {[%clk 0:01:55.4]} 27... Na7 {[%clk 0:01:10.5]} 28. f3
{[%clk 0:01:36.5]} 28... Ree7 {[%clk 0:01:04.9]} 29. Qh2 {[%clk 0:01:35.4]}
29... Qe8 {[%clk 0:01:03.8]} 30. Bf1 {[%clk 0:01:21.3]} 30... Kh8 {[%clk
0:01:03.7]} 31. Nh3 {[%clk 0:00:51]} 31... Qxh5 {[%clk 0:00:58.6]} 32. Rg5
{[%clk 0:00:44.5]} 32... Qh4 {[%clk 0:00:50.1]} 33. Bg3 {[%clk 0:00:23.6]} 33...
Qh6 {[%clk 0:00:48]} 34. Bf4 {[%clk 0:00:16.7]} 34... Qh4 {[%clk 0:00:48]} 35.
Bg3 {[%clk 0:00:16.5]} 35... Qh7 {[%clk 0:00:47.3]} 36. Kg1 {[%clk 0:00:13.6]}
36... Nb5 {[%clk 0:00:45.6]} 37. Qg2 {[%clk 0:00:12.9]} 37... g6 {[%clk
0:00:44.5]} 38. Nf4 {[%clk 0:00:12.9]} 38... Bh6 {[%clk 0:00:45.1]} 39. Nxg6+
{[%clk 0:00:10.2]} 39... Kg7 {[%clk 0:00:45.4]} 40. Nxe7+ {[%clk 0:00:08.9]}
40... Bxg5 {[%clk 0:00:45.6]} 41. Nxc8 {[%clk 0:00:08.8]} 41... Kf8 {[%clk
0:00:41.6]} 42. Bf2 {[%clk 0:00:06.8]} 42... Rg7 {[%clk 0:00:36.6]} 43. Nd6
{[%clk 0:00:04.4]} 43... Nxd6 {[%clk 0:00:36.1]} 44. exd6 {[%clk 0:00:04]} 44...
Be3 {[%clk 0:00:36.5]} 45. Bxe3 {[%clk 0:00:01.6]} 45... dxe3 {[%clk 0:00:36.3]}
46. Re1 {[%clk 0:00:01.9]} 46... f4 {[%clk 0:00:32.5]} 0-1

[Event "*** SCC Grand Prix: Titled Tuesday Blitz"]
[Site "Chess.com"]
[Date "2020.10.06"]
[Round "5"]
[White "Blagorod"]
[Black "davigator"]
[Result "0-1"]
[WhiteElo "2171"]
[BlackElo "2360"]
[TimeControl "180+1"]
[EndTime "10:57:06 PDT"]
[Termination "davigator won on time"]

1. e4 {[%clk 0:03:00.9]} 1... c5 {[%clk 0:02:59.1]} 2. Nc3 {[%clk 0:03:01]} 2...
Nc6 {[%clk 0:02:58.4]} 3. g3 {[%clk 0:03:01.6]} 3... g6 {[%clk 0:02:58.1]} 4.
Bg2 {[%clk 0:03:02.2]} 4... Bg7 {[%clk 0:02:58.3]} 5. d3 {[%clk 0:03:02.8]} 5...
d6 {[%clk 0:02:57.4]} 6. f4 {[%clk 0:03:02.3]} 6... e6 {[%clk 0:02:57.1]} 7. Nf3
{[%clk 0:03:02.8]} 7... Nge7 {[%clk 0:02:55.2]} 8. O-O {[%clk 0:03:02.9]} 8...
O-O {[%clk 0:02:55.1]} 9. Be3 {[%clk 0:03:03.5]} 9... Nd4 {[%clk 0:02:55.2]} 10.
e5 {[%clk 0:03:03.8]} 10... dxe5 {[%clk 0:02:43.5]} 11. fxe5 {[%clk 0:03:03.7]}
11... Nec6 {[%clk 0:02:36.9]} 12. Ne4 {[%clk 0:02:56.2]} 12... Nxe5 {[%clk
0:02:30.1]} 13. Nxe5 {[%clk 0:02:47.5]} 13... Bxe5 {[%clk 0:02:29]} 14. Nxc5
{[%clk 0:02:47.7]} 14... Qb6 {[%clk 0:02:26.3]} 15. Nb3 {[%clk 0:02:21.6]} 15...
Qd6 {[%clk 0:02:26.1]} 16. c3 {[%clk 0:02:17]} 16... Nxb3 {[%clk 0:02:25.9]} 17.
axb3 {[%clk 0:02:16.1]} 17... a6 {[%clk 0:02:18.1]} 18. b4 {[%clk 0:02:13.4]}
18... Qc7 {[%clk 0:02:13.2]} 19. Bc5 {[%clk 0:01:55]} 19... Rd8 {[%clk
0:02:12.3]} 20. Qf3 {[%clk 0:01:51.8]} 20... Rb8 {[%clk 0:02:08.2]} 21. Ba7
{[%clk 0:01:46.1]} 21... Ra8 {[%clk 0:02:07.4]} 22. Bf2 {[%clk 0:01:33.8]} 22...
Rb8 {[%clk 0:02:06.1]} 23. d4 {[%clk 0:01:22.3]} 23... Bg7 {[%clk 0:02:05.9]}
24. Be3 {[%clk 0:01:21.4]} 24... e5 {[%clk 0:01:58.2]} 25. Bg5 {[%clk
0:01:13.9]} 25... Re8 {[%clk 0:01:56]} 26. Rae1 {[%clk 0:01:12.2]} 26... Be6
{[%clk 0:01:48.4]} 27. dxe5 {[%clk 0:01:04.2]} 27... Bxe5 {[%clk 0:01:45.8]} 28.
Bf6 {[%clk 0:01:04.6]} 28... Bxf6 {[%clk 0:01:44.8]} 29. Qxf6 {[%clk 0:01:04.7]}
29... Qd8 {[%clk 0:01:45.3]} 30. Qf4 {[%clk 0:01:02.2]} 30... Qb6+ {[%clk
0:01:41.4]} 31. Kh1 {[%clk 0:01:01.7]} 31... Rbd8 {[%clk 0:01:41]} 32. Re4
{[%clk 0:00:52.8]} 32... Rd7 {[%clk 0:01:33.4]} 33. Qh6 {[%clk 0:00:49.5]} 33...
f5 {[%clk 0:01:28.5]} 34. Re5 {[%clk 0:00:35.1]} 34... Qd6 {[%clk 0:01:22.3]}
35. Qe3 {[%clk 0:00:20.4]} 35... Rde7 {[%clk 0:01:21.9]} 36. Re1 {[%clk
0:00:19.3]} 36... Kf8 {[%clk 0:01:21.3]} 37. Qh6+ {[%clk 0:00:17.8]} 37... Kg8
{[%clk 0:01:21.1]} 38. Qe3 {[%clk 0:00:18.4]} 38... Kf7 {[%clk 0:01:18.5]} 39.
c4 {[%clk 0:00:13.6]} 39... Bxc4 {[%clk 0:01:10.3]} 40. Rxe7+ {[%clk 0:00:13.3]}
40... Rxe7 {[%clk 0:01:10.6]} 41. Qxe7+ {[%clk 0:00:12.4]} 41... Qxe7 {[%clk
0:01:10.7]} 42. Rxe7+ {[%clk 0:00:13]} 42... Kxe7 {[%clk 0:01:11.1]} 43. Bxb7
{[%clk 0:00:13.6]} 43... Kd6 {[%clk 0:01:11.5]} 44. Kg1 {[%clk 0:00:11.7]} 44...
Ke5 {[%clk 0:01:11.5]} 45. Kf2 {[%clk 0:00:11.2]} 45... Kd4 {[%clk 0:01:11.9]}
46. h3 {[%clk 0:00:09.7]} 46... Bb5 {[%clk 0:01:09.8]} 47. g4 {[%clk 0:00:09.1]}
47... f4 {[%clk 0:01:01.4]} 48. Kf3 {[%clk 0:00:08.4]} 48... Ke5 {[%clk
0:01:02]} 49. h4 {[%clk 0:00:07.5]} 49... h6 {[%clk 0:01:01.8]} 50. g5 {[%clk
0:00:05.9]} 50... hxg5 {[%clk 0:01:01.4]} 51. hxg5 {[%clk 0:00:04.6]} 51... Kf5
{[%clk 0:01:02.1]} 52. Bc8+ {[%clk 0:00:01.2]} 52... Kxg5 {[%clk 0:01:02.3]} 0-1

[Event "*** SCC Grand Prix: Titled Tuesday Blitz"]
[Site "Chess.com"]
[Date "2020.10.06"]
[Round "5"]
[White "WiktoriaPOL"]
[Black "HanSchut"]
[Result "0-1"]
[WhiteElo "2040"]
[BlackElo "2235"]
[TimeControl "180+1"]
[EndTime "10:57:06 PDT"]
[Termination "HanSchut won by checkmate"]

1. c4 {[%clk 0:03:00.9]} 1... Nf6 {[%clk 0:02:59.6]} 2. Nc3 {[%clk 0:03:00.2]}
2... d5 {[%clk 0:02:59.7]} 3. cxd5 {[%clk 0:02:58.2]} 3... Nxd5 {[%clk
0:02:59.5]} 4. Nf3 {[%clk 0:02:56.4]} 4... c5 {[%clk 0:02:59.7]} 5. d4 {[%clk
0:02:53.9]} 5... Nc6 {[%clk 0:02:36.4]} 6. e4 {[%clk 0:02:37.7]} 6... Nxc3
{[%clk 0:02:25.4]} 7. bxc3 {[%clk 0:02:37]} 7... g6 {[%clk 0:01:46.3]} 8. d5
{[%clk 0:02:32.7]} 8... Na5 {[%clk 0:01:29.2]} 9. Bb5+ {[%clk 0:02:27]} 9... Bd7
{[%clk 0:01:22.2]} 10. Bxd7+ {[%clk 0:02:25.5]} 10... Qxd7 {[%clk 0:01:21.6]}
11. O-O {[%clk 0:02:22]} 11... Bg7 {[%clk 0:01:19.4]} 12. Qd3 {[%clk 0:02:18.3]}
12... O-O {[%clk 0:01:06.1]} 13. Bf4 {[%clk 0:02:15.8]} 13... b5 {[%clk
0:00:44.8]} 14. Ne5 {[%clk 0:02:12.6]} 14... Qd8 {[%clk 0:00:37.4]} 15. a4
{[%clk 0:02:06]} 15... f6 {[%clk 0:00:32.7]} 16. Nf3 {[%clk 0:02:01.8]} 16... c4
{[%clk 0:00:28.2]} 17. Qe2 {[%clk 0:01:58]} 17... a6 {[%clk 0:00:20.4]} 18. axb5
{[%clk 0:01:57.3]} 18... axb5 {[%clk 0:00:20.9]} 19. Rab1 {[%clk 0:01:51]} 19...
Nb3 {[%clk 0:00:21.1]} 20. Nd2 {[%clk 0:01:49.4]} 20... e5 {[%clk 0:00:19.4]}
21. Nxb3 {[%clk 0:01:45.7]} 21... cxb3 {[%clk 0:00:18.9]} 22. Be3 {[%clk
0:01:42.4]} 22... Ra2 {[%clk 0:00:18.6]} 23. Qxb5 {[%clk 0:01:41]} 23... Qb8
{[%clk 0:00:17.4]} 24. Qxb3 {[%clk 0:01:38.4]} 24... Qxb3 {[%clk 0:00:15.1]} 25.
Rxb3 {[%clk 0:01:39.3]} 25... Rc8 {[%clk 0:00:15.4]} 26. Rc1 {[%clk 0:01:36.6]}
26... Bf8 {[%clk 0:00:15.9]} 27. c4 {[%clk 0:01:36.1]} 27... f5 {[%clk
0:00:15.8]} 28. f3 {[%clk 0:01:34.6]} 28... f4 {[%clk 0:00:16]} 29. Bf2 {[%clk
0:01:30.1]} 29... Rd2 {[%clk 0:00:13.7]} 30. c5 {[%clk 0:01:26.5]} 30... Ra8
{[%clk 0:00:13.7]} 31. Be1 {[%clk 0:01:17.9]} 31... Re2 {[%clk 0:00:12.5]} 32.
Bc3 {[%clk 0:00:23.1]} 32... Raa2 {[%clk 0:00:11.9]} 33. Bxe5 {[%clk 0:00:12.9]}
33... Bxc5+ {[%clk 0:00:06.5]} 34. Kf1 {[%clk 0:00:08.2]} 34... Rf2+ {[%clk
0:00:06]} 35. Ke1 {[%clk 0:00:07.2]} 35... Rxg2 {[%clk 0:00:06.2]} 36. d6 {[%clk
0:00:03.5]} 36... Rg1# {[%clk 0:00:05.9]} 0-1

[Event "*** SCC Grand Prix: Titled Tuesday Blitz"]
[Site "Chess.com"]
[Date "2020.10.06"]
[Round "5"]
[White "platy3"]
[Black "Fighter008"]
[Result "1-0"]
[WhiteElo "2809"]
[BlackElo "2622"]
[TimeControl "180+1"]
[EndTime "10:57:07 PDT"]
[Termination "platy3 won by resignation"]

1. c4 {[%clk 0:03:00.9]} 1... g6 {[%clk 0:02:57.1]} 2. g3 {[%clk 0:03:00.4]}
2... Bg7 {[%clk 0:02:54.7]} 3. Bg2 {[%clk 0:03:01.3]} 3... e5 {[%clk 0:02:54.7]}
4. Nc3 {[%clk 0:02:59.9]} 4... Nc6 {[%clk 0:02:54.5]} 5. e3 {[%clk 0:03:00.3]}
5... d6 {[%clk 0:02:54.6]} 6. Nge2 {[%clk 0:03:00.7]} 6... h5 {[%clk 0:02:54.8]}
7. h3 {[%clk 0:02:59.6]} 7... h4 {[%clk 0:02:53.8]} 8. g4 {[%clk 0:02:54.6]}
8... f5 {[%clk 0:02:53.9]} 9. gxf5 {[%clk 0:02:54.3]} 9... Bxf5 {[%clk 0:02:51]}
10. d3 {[%clk 0:02:45.2]} 10... Nf6 {[%clk 0:02:50.5]} 11. a3 {[%clk 0:02:42.2]}
11... Qd7 {[%clk 0:02:44.6]} 12. b4 {[%clk 0:02:40.4]} 12... O-O-O {[%clk
0:02:39.9]} 13. Bb2 {[%clk 0:02:33.2]} 13... Kb8 {[%clk 0:02:38.9]} 14. Rc1
{[%clk 0:02:30.8]} 14... Ne7 {[%clk 0:02:37.1]} 15. Nd5 {[%clk 0:02:20]} 15...
Be6 {[%clk 0:02:33.2]} 16. Nxe7 {[%clk 0:02:15.7]} 16... Qxe7 {[%clk 0:02:33]}
17. d4 {[%clk 0:02:16.6]} 17... exd4 {[%clk 0:02:25.7]} 18. Bxd4 {[%clk
0:01:59.7]} 18... Bc8 {[%clk 0:02:21.4]} 19. Nf4 {[%clk 0:01:56.2]} 19... c5
{[%clk 0:01:58.8]} 20. Nxg6 {[%clk 0:01:36.6]} 20... Qe8 {[%clk 0:01:57.8]} 21.
Bxf6 {[%clk 0:01:36.6]} 21... Qxg6 {[%clk 0:01:55.7]} 22. Bxd8 {[%clk
0:01:36.5]} 22... Qxg2 {[%clk 0:01:40.7]} 23. Qxd6+ {[%clk 0:01:36.4]} 23... Ka8
{[%clk 0:01:41]} 24. Rh2 {[%clk 0:01:27.6]} 24... Qe4 {[%clk 0:01:34.8]} 25. Bf6
{[%clk 0:01:12.4]} 25... Bxf6 {[%clk 0:01:22.3]} 26. Qxf6 {[%clk 0:01:13.3]}
26... Rg8 {[%clk 0:01:22.9]} 27. Kd2 {[%clk 0:01:00.2]} 27... Bf5 {[%clk
0:01:18.6]} 28. Qd6 {[%clk 0:00:39.7]} 28... Qe8 {[%clk 0:00:47]} 29. Kc3 {[%clk
0:00:35.6]} 29... Qa4 {[%clk 0:00:45.9]} 30. Kb2 {[%clk 0:00:34.6]} 30... Be4
{[%clk 0:00:40.9]} 31. Qe6 {[%clk 0:00:31.1]} 31... Re8 {[%clk 0:00:40.5]} 32.
Qd6 {[%clk 0:00:27.9]} 32... Rc8 {[%clk 0:00:30.6]} 33. f4 {[%clk 0:00:26.8]}
33... a6 {[%clk 0:00:27.2]} 34. Rd2 {[%clk 0:00:26.6]} 34... Rc6 {[%clk
0:00:24.7]} 35. Qf8+ {[%clk 0:00:23.7]} 35... Ka7 {[%clk 0:00:25.2]} 36. Rd8
{[%clk 0:00:24.6]} 36... cxb4 {[%clk 0:00:20.2]} 37. Ra8+ {[%clk 0:00:21.4]}
37... Kb6 {[%clk 0:00:20.2]} 38. axb4 {[%clk 0:00:15.9]} 38... Rc7 {[%clk
0:00:17.3]} 39. Qd6+ {[%clk 0:00:14.9]} 39... Rc6 {[%clk 0:00:17.7]} 40. Qd8+
{[%clk 0:00:14.9]} 40... Rc7 {[%clk 0:00:17.5]} 41. Qd4+ {[%clk 0:00:15.1]} 1-0

[Event "*** SCC Grand Prix: Titled Tuesday Blitz"]
[Site "Chess.com"]
[Date "2020.10.06"]
[Round "5"]
[White "XDPS"]
[Black "NewBornNow"]
[Result "0-1"]
[WhiteElo "2795"]
[BlackElo "2656"]
[TimeControl "180+1"]
[EndTime "10:57:09 PDT"]
[Termination "NewBornNow won on time"]

1. e4 {[%clk 0:03:00.9]} 1... c5 {[%clk 0:02:59.6]} 2. Nf3 {[%clk 0:02:58.9]}
2... d6 {[%clk 0:02:59.6]} 3. d4 {[%clk 0:02:59]} 3... cxd4 {[%clk 0:02:59.8]}
4. Nxd4 {[%clk 0:02:59.9]} 4... Nf6 {[%clk 0:03:00]} 5. Nc3 {[%clk 0:03:00.5]}
5... a6 {[%clk 0:03:00.2]} 6. Be2 {[%clk 0:03:01.1]} 6... e5 {[%clk 0:02:59.1]}
7. Nf3 {[%clk 0:03:01]} 7... Be7 {[%clk 0:02:58.4]} 8. Bg5 {[%clk 0:03:01.1]}
8... Nbd7 {[%clk 0:02:57]} 9. O-O {[%clk 0:03:00.9]} 9... O-O {[%clk 0:02:56.7]}
10. Nd2 {[%clk 0:02:55.2]} 10... b5 {[%clk 0:02:55.7]} 11. a4 {[%clk 0:02:24.9]}
11... b4 {[%clk 0:02:54.8]} 12. Na2 {[%clk 0:02:25.3]} 12... a5 {[%clk
0:02:50.2]} 13. c3 {[%clk 0:02:24.9]} 13... Rb8 {[%clk 0:02:29.8]} 14. cxb4
{[%clk 0:02:23.9]} 14... axb4 {[%clk 0:02:29.9]} 15. Bb5 {[%clk 0:02:19.6]}
15... d5 {[%clk 0:02:21]} 16. exd5 {[%clk 0:02:17.3]} 16... Nxd5 {[%clk
0:02:20.7]} 17. Bxe7 {[%clk 0:02:14.9]} 17... Qxe7 {[%clk 0:02:18]} 18. Re1
{[%clk 0:02:14]} 18... N7f6 {[%clk 0:02:13.7]} 19. Nc4 {[%clk 0:02:10.4]} 19...
e4 {[%clk 0:02:10.5]} 20. Qd4 {[%clk 0:02:00.2]} 20... Bb7 {[%clk 0:02:04.7]}
21. Na5 {[%clk 0:01:52.8]} 21... b3 {[%clk 0:01:44.3]} 22. Nxb3 {[%clk
0:01:48.8]} 22... Rfd8 {[%clk 0:01:23.4]} 23. Nc3 {[%clk 0:01:05.2]} 23... Nb4
{[%clk 0:01:18.5]} 24. Qc5 {[%clk 0:00:57.1]} 24... Qxc5 {[%clk 0:01:18.3]} 25.
Nxc5 {[%clk 0:00:58]} 25... Nc2 {[%clk 0:01:18.3]} 26. Rac1 {[%clk 0:00:52.1]}
26... Nxe1 {[%clk 0:01:16.9]} 27. Rxe1 {[%clk 0:00:53]} 27... Ba8 {[%clk
0:01:16.3]} 28. h3 {[%clk 0:00:49.7]} 28... Rd4 {[%clk 0:01:14.7]} 29. g4 {[%clk
0:00:27]} 29... g5 {[%clk 0:01:07.9]} 30. b3 {[%clk 0:00:19.9]} 30... Rc8 {[%clk
0:01:00]} 31. b4 {[%clk 0:00:19.5]} 31... Rxb4 {[%clk 0:00:57.6]} 32. Na6 {[%clk
0:00:18.5]} 32... Rb2 {[%clk 0:00:53.7]} 33. Ne2 {[%clk 0:00:17.6]} 33... Nd5
{[%clk 0:00:49.4]} 34. Nd4 {[%clk 0:00:06.9]} 34... Nf4 {[%clk 0:00:48.1]} 35.
Nf5 {[%clk 0:00:07]} 35... Kf8 {[%clk 0:00:41.7]} 36. h4 {[%clk 0:00:06.3]}
36... Nh3+ {[%clk 0:00:39.8]} 37. Kh2 {[%clk 0:00:06.8]} 37... Nxf2 {[%clk
0:00:37.9]} 38. Kg3 {[%clk 0:00:07.3]} 38... Rc3+ {[%clk 0:00:36.1]} 39. Ne3
{[%clk 0:00:06.7]} 39... Nd1 {[%clk 0:00:29.7]} 40. hxg5 {[%clk 0:00:01.8]}
40... Nxe3 {[%clk 0:00:28.7]} 41. Kf4 {[%clk 0:00:01.9]} 41... Ng2+ {[%clk
0:00:27.4]} 0-1